bitfinex/quotes_SOLUSD_20250830
["timestamp","ask_amount","ask_price","bid_price","bid_amount"]
[1756534582947,4.56460606,205.85,205.84,0.68]
[1756534583268,4.56460606,205.85,205.8,4.85908649]
[1756534583465,4.56460606,205.84,205.82,0.68]
[1756534583671,4.56460606,205.85,205.82,0.68]
[1756534584353,4.56460606,205.85,205.83,0.68]
[1756534584655,158.28,205.89,205.8,9.42369255]
[1756534584656,158.28,205.89,205.84,0.68]
[1756534584837,4.56460606,205.87,205.85,0.68]
[1756534585667,4.56460606,205.87,205.84,4.85812705]
[1756534585668,4.56460606,205.88,205.84,4.85812705]
[1756534585873,131.6,205.89,205.86,0.68]
[1756534586053,131.6,205.89,205.87,0.68]
[1756534586252,4.56460606,205.9,205.87,0.68]
[1756534586438,4.56460606,205.9,205.81,0.68]
[1756534586439,30.56460606,205.88,205.81,0.68]
[1756534586642,4.56460606,205.83,205.79,0.68]
[1756534586867,4.56460606,205.83,205.8,0.68]
[1756534587046,0.68,205.86,205.8,0.68]
[1756534587245,4.56460606,205.84,205.8,0.68]
[1756534588996,4.56460606,205.84,205.81,0.68]
[1756534589150,4.56460606,205.84,205.8,4.85900307]
[1756534589349,5.24460606,205.83,205.77,0.68]
[1756534589581,4.56460606,205.82,205.77,0.68]
[1756534590457,0.68,205.85,205.8,0.03]
[1756534590665,4.56460606,205.83,205.8,0.03]
[1756534590870,4.56460606,205.82,205.8,0.03]
[1756534591468,5.24460606,205.81,205.8,0.03]
[1756534594676,36.10345645,205.81,205.8,0.03]
[1756534594879,31.24460606,205.81,205.8,0.03]
[1756534595076,30.56460606,205.81,205.8,0.03]
[1756534595379,26.0,205.81,205.8,0.03]
[1756534595683,30.56460606,205.81,205.8,0.03]
[1756534596291,31.24460606,205.81,205.8,0.03]
[1756534597186,26.0,205.81,205.8,0.03]
[1756534597387,30.56460606,205.81,205.8,0.03]
[1756534597685,31.24460606,205.81,205.8,0.03]
[1756534598492,4.56460606,205.81,205.8,0.03]
[1756534599393,26.0,205.83,205.8,0.74]
[1756534599592,4.56460606,205.81,205.8,0.03]
[1756534599761,26.68,205.83,205.8,0.03]
[1756534599964,4.56460606,205.82,205.8,0.03]
[1756534600999,132.28,205.88,205.81,5.27460606]
[1756534601164,4.56460606,205.87,205.81,5.27460606]
[1756534601362,4.56460606,205.87,205.82,4.85861432]
[1756534601588,5.24460606,205.87,205.82,5.56861432]
[1756534602581,5.24460606,205.87,205.83,0.71]
[1756534603071,4.56460606,205.85,205.81,4.85884231]
[1756534603402,4.56460606,205.86,205.82,5.56852337]
[1756534603695,4.56460606,205.86,205.82,4.85852337]
[1756534603886,5.24460606,205.86,205.82,5.56852337]
[1756534604474,5.24460606,205.86,205.82,0.71]
[1756534604681,5.24460606,205.86,205.82,5.56859249]
[1756534606466,5.24460606,205.86,205.82,4.85859249]
[1756534606776,5.24460606,205.86,205.82,0.71]
[1756534607172,5.24460606,205.85,205.81,4.85885039]
[1756534607370,131.6,205.88,205.8,0.03]
[1756534607371,5.24460606,205.84,205.8,0.03]
[1756534607678,4.56460606,205.83,205.8,0.03]
[1756534607882,0.68,205.84,205.8,0.03]
[1756534608077,4.56460606,205.83,205.8,0.03]
[1756534608278,0.68,205.84,205.8,4.88903483]
[1756534608279,4.56460606,205.84,205.8,4.88903483]
[1756534608491,5.24460606,205.84,205.8,5.59903483]
[1756534609492,0.68,205.83,205.8,0.03]
[1756534609679,4.56460606,205.84,205.8,0.74]
[1756534609989,5.24460606,205.84,205.8,0.03]
[1756534610177,4.56460606,205.83,205.8,0.03]
[1756534610380,0.68,205.83,205.8,0.03]
[1756534611190,0.68,205.82,205.8,0.03]
[1756534611690,0.68,205.81,205.8,0.03]
[1756534611887,4.56460606,205.82,205.8,0.03]
[1756534612086,5.24460606,205.82,205.8,0.03]
[1756534612393,0.68,205.81,205.8,0.03]
[1756534612694,5.24460606,205.81,205.8,0.03]
[1756534613674,0.68,205.81,205.8,0.03]
[1756534614026,31.24460606,205.81,205.8,0.03]
[1756534616614,36.10345645,205.81,205.8,0.03]
[1756534616817,31.24460606,205.81,205.8,0.03]
[1756534620209,26.0,205.81,205.8,0.03]
[1756534620388,30.56460606,205.81,205.8,0.03]
[1756534621304,5.570455,205.87,205.8,0.69]
[1756534621519,12.14002305,205.94,205.8,0.69]
[1756534621520,3.26495212,205.86,205.81,4.56460606]
[1756534621726,4.56460606,205.87,205.82,5.22460606]
[1756534621922,4.56460606,205.87,205.83,0.66]
[1756534622218,42.93649546,205.91,205.83,5.51837315]
[1756534622420,0.71,205.89,205.84,0.66]
[1756534622620,136.16460606,205.88,205.84,0.66]
[1756534623121,136.87460606,205.88,205.84,0.66]
[1756534623997,136.87460606,205.88,205.83,4.85837315]
[1756534624197,136.87460606,205.88,205.83,5.51837315]
[1756534625322,4.05582785,205.93,205.84,0.66]
[1756534625524,5.27460606,205.91,205.84,0.66]
[1756534625824,7.83590943,205.9,205.85,4.56460606]
[1756534626030,0.71,205.89,205.85,4.56460606]
[1756534626528,0.71,205.89,205.85,5.22460606]
[1756534626929,0.71,205.89,205.85,10.08238726]
[1756534627327,0.71,205.89,205.85,5.5177812]
[1756534627623,0.71,205.89,205.82,12.14638237]
[1756534627624,5.27460606,205.88,205.82,10.08322038]
[1756534629037,136.87460606,205.91,205.85,4.56460606]
[1756534629338,3.27138139,205.9,205.85,5.22460606]
[1756534629504,3.27138139,205.9,205.87,4.56460606]
[1756534629702,131.6,205.91,205.88,5.22460606]
[1756534629910,131.6,205.91,205.88,0.66]
[1756534630314,0.71,205.93,205.88,0.66]
[1756534630507,5.27460606,205.93,205.88,0.66]
[1756534631127,4.56460606,205.93,205.89,0.66]
[1756534631708,5.27460606,205.93,205.88,4.85719836]
[1756534632007,5.27460606,205.93,205.88,10.08180442]
[1756534632239,0.71,205.93,205.88,10.08180442]
[1756534632403,0.71,205.92,205.88,5.51719836]
[1756534632603,0.71,205.91,205.87,9.42203395]
[1756534632802,0.71,205.9,205.87,4.85742789]
[1756534633205,0.71,205.9,205.86,0.66]
[1756534633399,4.56460606,205.9,205.86,5.51766999]
[1756534633741,5.27460606,205.9,205.86,4.85766999]
[1756534633937,5.27460606,205.9,205.85,9.42249246]
[1756534633938,0.71,205.89,205.85,9.42249246]
[1756534634239,4.56460606,205.89,205.84,4.85813216]
[1756534634445,5.27460606,205.88,205.84,4.85813216]
[1756534634804,4.56460606,205.88,205.83,9.42296792]
[1756534635005,0.71,205.87,205.83,4.85836186]
[1756534635425,4.56460606,205.85,205.81,0.03]
[1756534635630,4.56460606,205.83,205.81,0.03]
[1756534636010,5.27460606,205.82,205.81,0.03]
[1756534640285,0.14216157,205.8,205.54,20.0]
[1756534640416,4.56460606,205.71,205.55,25.04506237]
[1756534640615,26.0,205.72,205.66,4.56460606]
[1756534640815,5.27460606,205.76,205.69,4.56460606]
[1756534641052,7.83334458,205.75,205.7,0.66]
[1756534641214,4.56460606,205.75,205.7,0.66]
[1756534641416,26.0,205.76,205.65,13.59559401]
[1756534641417,4.56460606,205.73,205.71,0.66]
[1756534641916,4.56460606,205.74,205.71,0.66]
[1756534642443,4.56460606,205.73,205.69,5.52147162]
[1756534642650,4.56460606,205.73,205.7,0.66]
[1756534642946,4.56460606,205.74,205.7,0.66]
[1756534643448,4.56460606,205.74,205.71,0.66]
[1756534643636,4.56460606,205.73,205.7,0.66]
[1756534643840,4.56460606,205.73,205.71,0.66]
[1756534644467,4.56460606,205.73,205.71,5.5212068]
[1756534644965,4.56460606,205.73,205.71,0.66]
[1756534645638,4.56460606,205.72,205.69,0.66]
[1756534646369,26.71,205.76,205.7,0.66]
[1756534646572,4.56460606,205.72,205.7,0.66]
[1756534646773,26.71,205.76,205.67,4.86215782]
[1756534647058,4.56460606,205.7,205.67,5.52215782]
[1756534647240,0.71,205.75,205.66,0.03]
[1756534647241,0.71,205.69,205.66,0.03]
[1756534647448,4.56460606,205.69,205.66,0.03]
[1756534648049,4.56460606,205.69,205.66,0.69]
[1756534648247,26.0,205.72,205.67,0.66]
[1756534648460,26.0,205.72,205.67,5.5220768]
[1756534648764,4.56460606,205.7,205.68,0.66]
[1756534648945,4.56460606,205.69,205.67,4.8620768]
[1756534649139,0.71,205.71,205.66,0.03]
[1756534649338,4.56460606,205.69,205.66,0.69]
[1756534649570,4.56460606,205.68,205.66,0.03]
[1756534650166,26.0,205.72,205.67,0.66]
[1756534650465,4.56460606,205.69,205.67,5.52205691]
[1756534650965,4.56460606,205.69,205.67,4.86205691]
[1756534651267,5.25460606,205.68,205.66,0.03]
[1756534651581,0.69,205.68,205.66,0.03]
[1756534651777,26.0,205.72,205.67,0.7]
[1756534651973,4.56460606,205.71,205.68,0.7]
[1756534652289,4.56460606,205.71,205.66,5.59239404]
[1756534652459,4.56460606,205.71,205.68,0.7]
[1756534652670,4.56460606,205.71,205.68,5.5618147]
[1756534652969,4.56460606,205.73,205.69,0.7]
[1756534653159,4.56460606,205.73,205.68,9.42642076]
[1756534653160,4.56460606,205.73,205.7,0.7]
[1756534654884,157.6,205.75,205.71,4.86121238]
[1756534655188,4.56460606,205.74,205.71,5.56121238]
[1756534656077,4.56460606,205.74,205.71,4.86121238]
[1756534656791,5.25460606,205.74,205.71,4.86121238]
[1756534657166,5.25460606,205.74,205.7,4.86143444]
[1756534658176,5.25460606,205.74,205.7,5.56143444]
[1756534658683,4.56460606,205.74,205.69,4.86168506]
[1756534658989,0.69,205.73,205.69,4.86168506]
[1756534659164,0.69,205.73,205.69,5.56168506]
[1756534659364,4.56460606,205.74,205.69,5.56168506]
[1756534659662,5.25460606,205.74,205.69,5.56168506]
[1756534660483,26.0,205.71,205.66,0.03]
[1756534660687,4.56460606,205.68,205.66,0.03]
[1756534660875,4.56460606,205.67,205.66,0.03]
[1756534661086,0.69,205.67,205.66,0.03]
[1756534661284,5.25460606,205.67,205.66,0.03]
[1756534661482,0.69,205.67,205.66,0.03]
[1756534661672,5.25460606,205.67,205.66,0.03]
[1756534665194,31.25460606,205.67,205.66,0.03]
[1756534668001,4.56460606,205.67,205.66,0.03]
[1756534668994,26.0,205.68,205.66,0.03]
[1756534669189,5.25460606,205.67,205.66,0.03]
[1756534671416,0.69,205.67,205.66,0.03]
[1756534671600,5.25460606,205.67,205.66,0.03]
[1756534675718,0.69,205.67,205.66,0.03]
[1756534676016,5.25460606,205.67,205.66,0.03]
[1756534679616,10.11676388,205.67,205.66,0.03]
[1756534680117,5.55215782,205.67,205.66,0.03]
[1756534680418,5.25460606,205.67,205.66,0.03]
[1756534681409,162.46170588,205.69,205.66,0.03]
[1756534681410,157.6,205.69,205.66,0.03]
[1756534681590,157.6,205.69,205.66,0.73]
[1756534681796,4.56460606,205.67,205.66,0.03]
[1756534683322,4.56460606,205.67,205.66,0.73]
[1756534683696,4.56460606,205.67,205.66,0.03]
[1756534684213,157.6,205.69,205.66,0.03]
[1756534684619,4.56460606,205.67,205.66,0.03]
[1756534684934,157.6,205.69,205.67,0.7]
[1756534684935,131.6,205.69,205.67,0.7]
[1756534685225,4.56460606,205.7,205.66,0.03]
[1756534685524,4.56460606,205.7,205.67,0.7]
[1756534685707,4.56460606,205.7,205.68,0.7]
[1756534686724,26.67,205.72,205.66,0.73]
[1756534686908,4.56460606,205.69,205.67,0.7]
[1756534688207,4.56460606,205.69,205.66,0.03]
[1756534688406,4.56460606,205.69,205.66,0.73]
[1756534689016,4.56460606,205.67,205.66,0.03]
[1756534689412,5.23460606,205.67,205.66,0.03]
[1756534690308,8.49736385,205.67,205.66,0.03]
[1756534693216,5.23460606,205.67,205.66,0.03]
[1756534695417,4.56460606,205.67,205.66,0.03]
[1756534699351,131.6,205.68,205.66,0.03]
[1756534699538,4.56460606,205.67,205.66,0.03]
[1756534700393,131.6,205.68,205.66,0.03]
[1756534700519,4.56460606,205.67,205.66,0.03]
[1756534701417,131.6,205.68,205.66,0.03]
[1756534701629,4.56460606,205.67,205.66,0.03]
[1756534704442,7.8353729,205.67,205.66,0.03]
[1756534704948,3.27076684,205.67,205.66,0.03]
[1756534705444,4.08592024,205.73,205.66,5.29460606]
[1756534705445,4.56460606,205.72,205.66,5.29460606]
[1756534705640,3.27426916,205.71,205.67,4.56460606]
[1756534705829,3.27426916,205.72,205.69,4.56460606]
[1756534706023,3.27426916,205.73,205.7,0.7]
[1756534706822,3.94426916,205.73,205.69,4.86168506]
[1756534707146,3.94426916,205.73,205.69,5.56168506]
[1756534707653,8.50887522,205.73,205.69,5.56168506]
[1756534707957,3.27426916,205.72,205.69,5.56168506]
[1756534709169,3.27426916,205.72,205.7,0.7]
[1756534709368,4.56460606,205.73,205.7,0.7]
[1756534710271,4.56460606,205.73,205.7,5.56143347]
[1756534710440,4.56460606,205.73,205.7,4.86143347]
[1756534710645,0.67,205.72,205.7,4.86143347]
[1756534710856,131.6,205.75,205.71,5.22460606]
[1756534711059,131.6,205.75,205.72,5.22460606]
[1756534711241,131.6,205.75,205.72,4.56460606]
[1756534711563,131.6,205.75,205.73,0.66]
[1756534711738,131.6,205.75,205.72,4.56460606]
[1756534711941,132.32,205.75,205.7,5.52143347]
[1756534712141,132.32,205.75,205.71,10.08559976]
[1756534712337,131.6,205.75,205.73,4.56460606]
[1756534712554,131.6,205.75,205.72,0.66]
[1756534712755,131.6,205.75,205.71,9.42559976]
[1756534713070,131.6,205.75,205.71,10.08559976]
[1756534713770,5.28460606,205.74,205.69,9.42605734]
[1756534713970,0.72,205.73,205.69,10.08605734]
[1756534715671,0.72,205.73,205.7,4.56460606]
[1756534715847,132.32,205.75,205.7,5.22460606]
[1756534716051,0.72,205.74,205.7,10.08599197]
[1756534717382,0.72,205.74,205.71,4.56460606]
[1756534718069,0.72,205.74,205.71,9.4257867]
[1756534718978,131.6,205.75,205.71,10.0857867]
[1756534719181,132.32,205.75,205.71,10.0857867]
[1756534720181,0.72,205.74,205.71,9.4257867]
[1756534720479,0.72,205.74,205.71,10.0857867]
[1756534720677,0.72,205.74,205.71,9.4257867]
[1756534720886,0.72,205.74,205.71,4.86118064]
[1756534722882,0.72,205.73,205.69,4.59460606]
[1756534723060,0.72,205.72,205.69,4.59460606]
[1756534723860,0.72,205.72,205.69,5.25460606]
[1756534724375,0.72,205.72,205.69,4.59460606]
[1756534724861,0.72,205.72,205.69,5.25460606]
[1756534725169,0.72,205.74,205.69,5.25460606]
[1756534725357,0.72,205.74,205.7,0.66]
[1756534725560,0.72,205.74,205.7,5.22460606]
[1756534726067,0.72,205.74,205.7,10.0860183]
[1756534726567,0.72,205.74,205.7,5.52141224]
[1756534726568,5.28460606,205.74,205.7,5.52141224]
[1756534729096,0.72,205.74,205.7,5.52141224]
[1756534729278,5.28460606,205.74,205.7,5.52141224]
[1756534729890,131.6,205.75,205.71,0.66]
[1756534730089,4.56460606,205.74,205.7,4.86141224]
[1756534730279,136.16460606,205.75,205.72,0.66]
[1756534730586,136.88460606,205.75,205.71,0.66]
[1756534730892,4.56460606,205.74,205.71,0.66]
[1756534731072,131.6,205.75,205.72,5.52078514]
[1756534731277,136.16460606,205.75,205.72,5.52078514]
[1756534731876,132.32,205.8,205.73,0.66]
[1756534732078,0.06,205.81,205.75,4.56460606]
[1756534732295,0.06,205.81,205.74,5.520785]
[1756534732296,4.56460606,205.77,205.74,5.520785]
[1756534732595,4.56460606,205.76,205.74,0.66]
[1756534732891,5.28460606,205.77,205.74,0.66]
[1756534733280,4.56460606,205.77,205.74,5.52035532]
[1756534733685,0.72,205.79,205.74,5.52035532]
[1756534733686,4.56460606,205.78,205.75,0.66]
[1756534733992,4.56460606,205.79,205.76,0.66]
[1756534734494,4.56460606,205.79,205.74,9.42496138]
[1756534734495,5.28460606,205.79,205.74,10.08496138]
[1756534734797,5.28460606,205.79,205.75,0.66]
[1756534735283,5.28460606,205.79,205.75,5.52008221]
[1756534735469,4.56460606,205.79,205.76,0.66]
[1756534735982,5.28460606,205.79,205.75,4.86008221]
[1756534736192,5.28460606,205.79,205.75,5.52008221]
[1756534736393,0.72,205.79,205.75,5.52008221]
[1756534736585,4.56460606,205.78,205.75,5.52008221]
[1756534739101,0.72,205.79,205.75,5.52008221]
[1756534739307,4.56460606,205.78,205.75,5.52008221]
[1756534741107,4.56460606,205.78,205.76,0.67]
[1756534741312,4.56460606,205.8,205.77,0.67]
[1756534741495,0.72,205.8,205.75,9.42468827]
[1756534741684,4.56460606,205.76,205.73,4.86060207]
[1756534741878,4.56460606,205.75,205.72,19.46911289]
[1756534742200,5.28460606,205.75,205.72,38.64]
[1756534742393,4.56460606,205.75,205.72,39.31]
[1756534743090,4.56460606,205.76,205.73,5.5307398]
[1756534744702,4.56460606,205.76,205.71,4.86121238]
[1756534745032,4.56460606,205.75,205.72,38.6]
[1756534745208,4.56460606,205.75,205.72,39.27]
[1756534745591,0.72,205.76,205.72,39.27]
[1756534745792,30.56460606,205.77,205.73,0.67]
[1756534746014,30.56460606,205.77,205.74,0.67]
[1756534746220,4.56460606,205.79,205.75,0.67]
[1756534746398,30.56460606,205.79,205.75,0.67]
[1756534746604,4.56460606,205.8,205.75,0.67]
[1756534746809,4.56460606,205.8,205.77,4.85979491]
[1756534747140,0.06,205.81,205.78,0.67]
[1756534747612,0.06,205.81,205.79,0.67]
[1756534747822,0.06,205.81,205.77,11.37177297]
[1756534748026,0.06,205.81,205.78,0.67]
[1756534748312,0.06,205.81,205.79,4.85932261]
[1756534749020,0.72,205.8,205.77,1.947372]
[1756534749198,0.06,205.81,205.78,38.56]
[1756534749399,4.56460606,205.8,205.78,38.56]
[1756534750819,5.28460606,205.79,205.78,38.56]
[1756534751399,0.78,205.81,205.78,38.56]
[1756534751597,4.56460606,205.79,205.78,38.56]
[1756534751803,4.56460606,205.8,205.78,38.56]
[1756534752528,0.06,205.81,205.79,5.52911091]
[1756534752722,0.06,205.81,205.79,0.67]
[1756534753012,4.56460606,205.8,205.78,38.56]
[1756534754525,5.34460606,205.81,205.78,38.56]
[1756534755728,5.34460606,205.81,205.78,43.41954881]
[1756534756026,4.62460606,205.81,205.79,0.67]
[1756534756204,0.06,205.81,205.79,0.67]
[1756534756925,5.34460606,205.81,205.78,43.41954881]
[1756534757305,4.62460606,205.81,205.78,44.08954881]
[1756534758223,0.06,205.81,205.78,44.08954881]
[1756534758426,0.06,205.81,205.79,0.67]
[1756534758726,0.06,205.81,205.78,43.41954881]
[1756534758930,0.06,205.81,205.79,0.67]
[1756534759425,0.06,205.81,205.8,0.67]
[1756534759722,4.62460606,205.81,205.8,38.46]
[1756534760427,5.34460606,205.81,205.8,38.46]
[1756534760630,5.34460606,205.81,205.73,0.17216157]
[1756534760631,9.90921212,205.81,205.73,0.03]
[1756534760822,4.56460606,205.75,205.74,38.46]
[1756534762618,4.56460606,205.75,205.74,43.32050354]
[1756534763134,0.72,205.79,205.74,43.32050354]
[1756534763135,4.56460606,205.76,205.74,43.99050354]
[1756534763738,26.72,205.79,205.74,43.32050354]
[1756534763917,4.56460606,205.76,205.74,43.32050354]
[1756534765032,4.56460606,205.76,205.74,38.46]
[1756534765334,5.28460606,205.75,205.73,0.03]
[1756534765521,4.56460606,205.74,205.73,0.03]
[1756534765920,5.28460606,205.74,205.73,0.03]
[1756534766637,4.56460606,205.74,205.73,0.03]
[1756534766839,5.28460606,205.74,205.73,0.03]
[1756534767037,30.56460606,205.75,205.73,0.03]
[1756534767631,30.56460606,205.75,205.73,0.7]
[1756534768010,4.56460606,205.76,205.73,0.03]
[1756534768217,4.56460606,205.76,205.74,0.67]
[1756534768443,4.56460606,205.76,205.75,38.46]
[1756534768736,4.56460606,205.77,205.75,39.13]
[1756534769033,4.56460606,205.78,205.75,43.32026731]
[1756534769336,0.06,205.81,205.75,43.32026731]
[1756534769337,0.06,205.81,205.76,0.67]
[1756534769522,4.62460606,205.81,205.76,5.23460606]
[1756534769726,0.06,205.81,205.77,5.23460606]
[1756534769926,0.06,205.81,205.78,39.13]
[1756534770422,0.06,205.81,205.78,38.46]
[1756534770633,0.06,205.81,205.79,0.67]
[1756534770844,5.28460606,205.81,205.8,38.46]
[1756534771041,0.72,205.81,205.8,38.46]
[1756534771353,4.62460606,205.81,205.8,38.46]
[1756534771535,0.06,205.81,205.8,38.46]
[1756534772524,5.28460606,205.81,205.77,38.46]
[1756534772728,5.28460606,205.81,205.75,0.69]
[1756534772729,4.56460606,205.78,205.72,5.55075098]
[1756534773048,5.22460606,205.8,205.74,38.3]
[1756534773350,4.56460606,205.75,205.74,38.3]
[1756534774138,5.22460606,205.75,205.74,38.3]
[1756534774532,5.22460606,205.75,205.74,38.33]
[1756534775046,0.66,205.75,205.74,38.33]
[1756534775235,5.22460606,205.75,205.74,38.33]
[1756534775639,0.66,205.75,205.74,38.33]
[1756534775949,5.22460606,205.75,205.74,38.33]
[1756534776629,5.22460606,205.75,205.74,0.03]
[1756534780137,4.56460606,205.75,205.74,0.03]
[1756534780753,5.22460606,205.75,205.74,0.03]
[1756534781453,26.0,205.75,205.74,0.03]
[1756534781645,30.56460606,205.75,205.74,0.03]
[1756534781847,31.22460606,205.75,205.74,0.03]
[1756534785760,5.22460606,205.75,205.74,0.03]
[1756534786876,31.22460606,205.75,205.74,0.03]
[1756534787560,30.56460606,205.75,205.74,0.03]
[1756534788228,4.56460606,205.75,205.74,0.03]
[1756534788435,4.56460606,205.79,205.74,5.28460606]
[1756534788651,4.56460606,205.8,205.75,43.71460606]
[1756534788851,0.06,205.81,205.75,43.71460606]
[1756534788852,4.56460606,205.79,205.76,0.69]
[1756534789064,4.56460606,205.78,205.75,38.46]
[1756534789284,4.56460606,205.78,205.76,0.69]
[1756534789559,26.06,205.81,205.76,5.54985766]
[1756534789734,4.56460606,205.79,205.77,0.69]
[1756534789933,4.56460606,205.79,205.78,0.69]
[1756534790148,26.06,205.81,205.78,0.69]
[1756534790348,4.56460606,205.8,205.76,4.85985766]
[1756534790563,4.62460606,205.81,205.79,0.69]
[1756534791173,0.06,205.81,205.79,0.69]
[1756534791555,0.06,205.81,205.8,0.69]
[1756534792369,0.06,205.81,205.79,38.44]
[1756534793274,4.62460606,205.81,205.79,39.13]
[1756534795680,0.06,205.81,205.79,39.13]
[1756534796178,4.62460606,205.81,205.79,39.13]
[1756534796351,0.06,205.81,205.79,39.13]
[1756534797575,0.06,205.81,205.8,0.69]
[1756534798986,0.06,205.81,205.79,43.2991652]
[1756534798987,0.06,205.81,205.79,38.44]
[1756534799188,4.62460606,205.81,205.79,38.44]
[1756534799756,0.06,205.81,205.79,38.44]
[1756534800550,0.06,205.81,205.79,47.86377511]
[1756534800759,0.06,205.81,205.79,43.29916905]
[1756534800951,0.06,205.81,205.79,47.86377511]
[1756534801155,0.06,205.81,205.79,38.44]
[1756534801858,0.06,205.81,205.8,38.42]
[1756534803965,0.06,205.81,205.8,39.12]
[1756534804996,0.06,205.81,205.8,48.54369255]
[1756534808304,0.06,205.81,205.8,43.97908649]
[1756534810403,0.06,205.81,205.8,62.28144813]
[1756534810613,0.06,205.81,205.8,66.90605413]
[1756534811582,0.06,205.81,205.8,62.28144813]
[1756534812303,0.06,205.81,205.8,43.97908649]
[1756534812511,5.34460606,205.81,205.8,38.42]
[1756534813584,5.34460606,205.81,205.77,0.03]
[1756534813782,5.28460606,205.8,205.78,38.4]
[1756534815909,4.56460606,205.8,205.78,38.4]
[1756534817109,4.62460606,205.81,205.78,38.4]
[1756534817287,5.34460606,205.81,205.78,38.4]
[1756534817488,4.62460606,205.81,205.78,38.4]
[1756534817794,0.72,205.8,205.78,38.4]
[1756534818001,4.62460606,205.81,205.78,38.4]
[1756534818194,5.34460606,205.81,205.78,38.4]
[1756534819911,0.78,205.81,205.78,38.4]
[1756534820089,4.62460606,205.81,205.78,39.1]
[1756534823402,5.34460606,205.81,205.78,38.4]
[1756534824011,4.56460606,205.8,205.78,38.4]
[1756534824803,5.28460606,205.79,205.77,0.03]
[1756534825026,5.28460606,205.79,205.77,38.43]
[1756534825027,0.72,205.79,205.77,38.43]
[1756534825226,5.28460606,205.78,205.77,38.43]
[1756534825624,0.72,205.78,205.77,38.43]
[1756534825829,5.28460606,205.78,205.77,38.43]
[1756534827729,0.72,205.78,205.77,38.43]
[1756534827929,5.28460606,205.78,205.77,38.43]
[1756534829717,5.28460606,205.78,205.77,0.03]
[1756534830326,0.72,205.78,205.77,0.03]
[1756534830529,5.28460606,205.78,205.77,0.03]
[1756534831117,10.14416481,205.78,205.77,0.03]
[1756534832419,13.40414426,205.78,205.77,0.03]
[1756534834033,8.8395382,205.78,205.77,0.03]
[1756534834250,3.25997945,205.78,205.77,0.03]
[1756534834418,4.56460606,205.78,205.77,0.03]
[1756534834616,4.56460606,205.8,205.77,0.71]
[1756534834925,4.56460606,205.8,205.77,0.03]
[1756534835118,26.0,205.8,205.77,0.03]
[1756534835313,26.0,205.8,205.78,0.68]
[1756534835539,4.56460606,205.79,205.78,0.68]
[1756534836646,0.06,205.81,205.78,0.68]
[1756534836854,4.56460606,205.8,205.77,4.88975855]
[1756534837032,4.62460606,205.81,205.79,5.53928497]
[1756534837341,0.06,205.81,205.8,0.68]
[1756534839314,0.06,205.81,205.8,5.53908649]
[1756534839539,0.06,205.81,205.8,62.07928656]
[1756534839741,0.06,205.81,205.8,57.65684207]
[1756534840050,0.06,205.81,205.8,48.54369249]
[1756534841826,0.76,205.81,205.77,0.71]
[1756534842035,4.56460606,205.8,205.77,0.03]
[1756534842238,4.56460606,205.8,205.78,0.68]
[1756534842654,4.56460606,205.8,205.77,0.03]
[1756534842655,4.56460606,205.79,205.77,0.03]
[1756534842956,4.56460606,205.78,205.77,0.03]
[1756534843360,0.76,205.81,205.77,0.71]
[1756534843561,4.56460606,205.78,205.77,0.71]
[1756534844154,0.76,205.81,205.77,0.71]
[1756534844368,4.56460606,205.78,205.77,5.56979491]
[1756534844543,4.56460606,205.78,205.77,4.88979491]
[1756534845543,0.7,205.8,205.77,0.03]